Cogmind - Beta 14 @@@ ROGUE MODE // 2024.10.30 @ 17:18:15 Player: Xellophane Result: Destroyed by S-10 Pest with Light Assault Rifle Performance ------------- Evolutions (0) 0 Regions Visited (1) 200 Robots Destroyed (16) 80 Value Destroyed (383) 383 Prototype IDs (2) 40 Alien Tech Used (0) 0 Bonus (0) 0 TOTAL SCORE: 703 Bonus ------- None Cogmind --------- Core Integrity 0/250 Matter 327/400 Energy 100/100 System Corruption 0% Temperature Cool (0) Movement Core (150) Ox2 Location -10/Materials Parts ------- > --- POWER (1) -------- (None) > --- PROPULSION (2) --- Compact Wheel > --- UTILITY (2) ------ Medium Matter Pod > --- WEAPON (2) ------- Particle Gun Assault Rifle > --- INVENTORY (5) ---- Light Ion Engine Heat Sink Large Storage Unit Structural Scanner Mining Claw Peak State ------------ > --- POWER ------------ Light Ion Engine > --- PROPULSION ------- Wheel Wheel > --- UTILITY ---------- Small Matter Pod Improved Terrain Scanner > --- WEAPON ----------- EM Pulse Gun Assault Rifle > --- INVENTORY -------- Light Ion Engine [Rating: 9] Favorites ----------- Power Light Ion Engine Engine Light Ion Engine Propulsion Wheel Wheel Wheel Hover Unit Hover Unit Utility Medium Matter Pod Device Improved Terrain Scanner Storage Medium Matter Pod Weapon Assault Rifle Energy Gun EM Pulse Gun Ballistic Gun Assault Rifle Build | -11 -10 ------- Run | Yrd Mat Slots Evolved . | . . Power . | . . Propulsion . | . . Utility . | . . Weapon . | . . Parts Attached 13 | 7 6 Power 1 | 1 . Engine 1 | 1 . Core . | . . Reactor . | . . Propulsion 5 | 2 3 Treads . | . . Leg . | . . Wheel 4 | 2 2 Hover 1 | . 1 Flight . | . . Utility 4 | 2 2 Device 1 | 1 . Storage 3 | 1 2 Processor . | . . Hackware . | . . Protection . | . . Artifact . | . . Weapon 3 | 2 1 Energy Gun 2 | 1 1 Energy Cannon . | . . Ballistic Gun 1 | 1 . Ballistic Cannon . | . . Launcher . | . . Special Weapon . | . . Impact Weapon . | . . Slashing Weapon . | . . Piercing Weapon . | . . Special Melee Weapon . | . . Unidentified Prototypes . | . . Parts Lost 6 | . 6 Power 1 | . 1 Propulsion 3 | . 3 Utility 1 | . 1 Weapon 1 | . 1 Highest Loss Streak 4 | . 4 To Critical Strikes . | . . Average Slot Usage (%) 87 | . 87 Engine 13 | . 13 Wheel 22 | . 22 Hover 1 | . 1 Device 8 | . 8 Storage 14 | . 14 Energy Gun 12 | . 12 Ballistic Gun 14 | . 14 Peak Build Rating 9 | 9 9 Average Rating 7 | 5 7 On Entrance 4 | . 9 Naked Turns . | . . Heaviest Build 10 | 9 10 Greatest Support 20 | 20 20 Greatest Overweight (x) 3 | . 3 Average Overweight (x) . | . . Largest Inventory Capacity 15 | 5 15 Average Capacity 5 | 5 5 Most Carried 5 | 2 5 Average Carried 3 | . 4 Final Capacity 5 | 5 5 Final Carried 5 | 2 5 Class Distribution -------------------- 100% | Mutant Dominant Class ---------------- Mutant | -10/Materials Resources | -11 -10 ----------- Run | Yrd Mat Matter Collected 522 | 371 151 Remotely . | . . Salvage Created 551 | 125 426 Parts 37 | 9 28 Haulers Intercepted . | . . Recyclers Shooed 1 | . 1 Parts Field Recycled . | . . Retrieved Matter . | . . Parts Self-Destructed . | . . Prevented . | . . Kills | -11 -10 ------- Run | Yrd Mat Combat Hostiles Destroyed 10 | 1 9 Guns 10 | 1 9 Classes Destroyed 6 | 3 3 Worker 1 | 1 . Tunneler 3 | 3 . Recycler 1 | . 1 Operator 1 | . 1 Swarmer 1 | . 1 Grunt 9 | 1 8 Best Kill Streak 3 | 2 3 Combat Bots Only 3 | 1 3 Max Kills in Single Turn 1 | 1 1 Gunslinging . | . . Exploded . | . . Melee . | . . Uniques/NPCs Destroyed . | . . Combat | -11 -10 -------- Run | Yrd Mat Hostile Shots Fired 84 | 3 81 Missed 35 | 2 33 Damage Taken 608 | 11 597 Core 254 | . 254 Absorbed by Shields . | . . Core Remaining (%) 100 | 100 . Volleys Fired 62 | 17 45 Largest 2 | 2 2 Hottest 60 | 60 60 Shots Fired 94 | 34 60 Gun 94 | 34 60 Cannon . | . . Launcher . | . . Special . | . . Kinetic 62 | 17 45 Thermal . | . . Explosive . | . . Electromagnetic 32 | 17 15 Robot Hit Streak 11 | 5 11 Robot Miss Streak 4 | 2 4 Penetration Max . | . . Secondary Targets . | . . Shots Hit Robots 54 | 20 34 Core Hits 23 | 5 18 Critical Kills 1 | . 1 Critical Parts Destroyed . | . . Critical Strikes 2 | . 2 Destroy 1 | . 1 Corrupt 1 | . 1 Melee Attacks . | . . Impact . | . . Slashing . | . . Piercing . | . . Sneak Attacks . | . . Combat Hostiles . | . . Follow-up Attacks . | . . Damage Inflicted 792 | 279 513 Guns 767 | 279 488 Cannons . | . . Explosions 25 | . 25 Melee . | . . Ramming . | . . Kinetic 480 | 140 340 Thermal 25 | . 25 Explosive . | . . Electromagnetic 287 | 139 148 Impact . | . . Slashing . | . . Piercing . | . . Highest Corruption . | . . Average Corruption . | . . Corruption Purged . | . . Corruption Blocked . | . . Overload Shots . | . . Overflow Damage 15 | . 15 Projectiles . | . . Explosions 15 | . 15 Melee . | . . Knockbacks . | . . Impact . | . . Kinetic . | . . Secondary . | . . Self-Inflicted Damage . | . . Shots . | . . Rammed . | . . Targets Rammed . | . . Kicked . | . . Crushed . | . . Highest Temperature 84 | . 84 Average Temperature 37 | . 37 Received Heat Transfer 168 | 6 162 Siege Activations . | . . Robots Corrupted . | . . Combat Hostiles . | . . Parts Fried . | . . Impact Corruptions . | . . Robots Melted . | . . Combat Hostiles . | . . Parts Melted . | . . Heat Transferred 50 | . 50 Parts Sabotaged . | . . Parts Stolen . | . . Parts Stripped . | . . Power Chain Reactions 1 | . 1 Alert | -11 -10 ------- Run | Yrd Mat Peak Influence 297 | 40 297 Initial 26 | . 26 Average 122 | 17 148 Maximum Alert Level 1 | . 1 Low Security (%) 81 | 100 76 Level 1 18 | . 23 Level 2 . | . . Level 3 . | . . Level 4 . | . . Level 5 . | . . High Security . | . . Max Security . | . . Squads Dispatched 3 | . 3 Investigation 2 | . 2 Extermination . | . . Reinforcement 1 | . 1 Assault . | . . Garrison . | . . Intercept . | . . Searches Triggered . | . . Construction Impeded . | . . Haulers Reinforced . | . . Active Scanning Responses . | . . Cargo Convoy Interrupts . | . . Stealth | -11 -10 --------- Run | Yrd Mat Distress Signals . | . . Communications Jammed . | . . Distress Signals . | . . Times Spotted 28 | 1 27 Peak Tracking Total 6 | 1 6 Tactical Retreats 3 | . 3 Traps | -11 -10 ------- Run | Yrd Mat Traps Triggered 2 | . 2 Indirectly . | . . Trap Hack Attempts . | . . Triggered . | . . Disarmed . | . . Reprogrammed . | . . Reused . | . . Traps Extracted . | . . Installed . | . . Triggered . | . . Machines | -11 -10 ---------- Run | Yrd Mat Machines Disabled 1 | . 1 Max in Single Turn 1 | . 1 Machines Repaired . | . . Machines Dismantled . | . . Machines Sabotaged . | . . Overloaded Fab Kills . | . . Hacking | -11 -10 --------- Run | Yrd Mat Machines Accessed 3 | . 3 Terminals 2 | . 2 Fabricators . | . . Repair Stations . | . . Recycling Units 1 | . 1 Scanalyzers . | . . Garrison Access . | . . Total Hacks 7 | . 7 Successful 4 | . 4 Failed 3 | . 3 Catastrophic . | . . Database Lockouts . | . . Manual . | . . Terminals 5 | . 5 Fabricators . | . . Repair Stations . | . . Recycling Units 2 | . 2 Scanalyzers . | . . Garrison Access . | . . Terminal Hacks 2 | . 2 Prototype ID Bank 1 | . 1 Recall Reinforcements 1 | . 1 Fabricator Hacks . | . . Repair Station Hacks . | . . Recycling Unit Hacks 2 | . 2 Report Inventory 1 | . 1 Retrieve Components 1 | . 1 Scanalyzer . | . . Garrison Access Hacks . | . . Unauthorized Hacks . | . . Terminals . | . . Fabricators . | . . Repair Stations . | . . Recycling Units . | . . Scanalyzers . | . . Garrison Access . | . . Data Cores Recovered . | . . Used . | . . Hacking Detections 2 | . 2 Full Trace Events . | . . Feedback Events . | . . Feedback Blocked . | . . Robot Schematics Acquired . | . . Robots Built . | . . Authchips . | . . Time . | . . Total Robot Build Rating . | . . Part Schematics Acquired . | . . Parts Built . | . . Authchips . | . . Time . | . . Total Part Build Rating . | . . Parts Repaired . | . . Time . | . . Parts Recycled . | . . Recycled Matter . | . . Retrieved Matter . | . . Retrieved Components 7 | . 7 Parts Scanalyzed . | . . Part Schematics Acquired . | . . Parts Damaged . | . . Bothacking | -11 -10 ------------ Run | Yrd Mat Used RIF Installer . | . . Robots Hacked . | . . Non-combat . | . . Combat . | . . Robot Hacks Applied . | . . Relay Couplers Released . | . . Fabnet Peak Effective % . | . . Robots Rewired . | . . Allies Hacked . | . . Hacks Repelled . | . . Allies | -11 -10 -------- Run | Yrd Mat Total Allies . | . . Largest Group . | . . Highest-Rated Group . | . . Highest-Rated Ally . | . . Total Orders . | . . Ally Attacks . | . . Total Damage . | . . Kills . | . . Allies Corrupted . | . . Allies Melted . | . . Intel | -11 -10 ------- Run | Yrd Mat Robot Analysis Total . | . . Derelict Logs Recovered . | . . Drone Launches . | . . Drone Recoveries . | . . Exploration | -11 -10 ------------- Run | Yrd Mat Turns Passed 696 | 136 560 Spaces Moved 460 | 97 363 Core 110 | 19 91 Treads . | . . Legs . | . . Wheels 327 | 78 249 Hover 23 | . 23 Flight . | . . Fastest Speed 50 | 50 80 Average Speed 102 | 74 109 Slowest Speed 200 | 80 200 Overloaded Moves . | . . Propulsion Burnouts . | . . Robots Hopped . | . . Cave-ins Triggered . | . . Exploration Rate (%) 31 | 7 55 Regions Visited 1 Branch Regions . Pre-discovered Areas . | . . Known Exits Taken . | . . Unknown Exits Taken 1 | 1 . Scrap Searched . | . . Spaces Dug . | . . Terrain Destroyed 3 | . 3 Melee . | . . Projectile . | . . AOE 3 | . 3 Terrain Rammed . | . . Walls Destroyed . | . . Machines Disabled . | . . Actions | -11 -10 --------- Run | Yrd Mat Total 588 | 123 465 Wait 44 | . 44 Move 459 | 96 363 Hop . | . . Pick Up 8 | 3 5 Fast Attach 8 | 6 2 Attach 3 | 1 2 Detach 1 | . 1 Swap 2 | . 2 Drop 1 | . 1 Fire 62 | 17 45 Melee . | . . Ram . | . . Kick . | . . Crush . | . . Escape Stasis . | . . Rewire . | . . Trap . | . . Miscellaneous . | . . Route ------- -11/Scrapyard -10/Materials (discovered 2 exits: [*Mat] / [*Min]) History --------- Turn | Location | Event 2 | -11/Scrapyard | Met Revision 17 59 | -11/Scrapyard | Discovered new exit (range 8) 137 | -11/Scrapyard | Entered Materials 315 | -10/Materials | Build established: Mutant 335 | -10/Materials | Discovered new exit (range 14) 445 | -10/Materials | Core integrity fell below 50% 493 | -10/Materials | Lost 4 parts (2n1u1w) 567 | -10/Materials | Discovered new exit (range 16) 689 | -10/Materials | Core integrity fell below 20% 697 | -10/Materials | Destroyed by S-10 Pest with Light Assault Rifle Last Messages --------------- 00501_ R-06 Scavenger destroyed. 00503_ K-01 Serf collects debris. 00521_ Acquired Particle Gun. 00524_ Acquired Com. Wheel. 00526_ K-01 Serf collects debris. 00547_ R-06 Scavenger collects Aluminum Leg. 00550_ R-06 Scavenger collects Heat Sink. 00562_ R-06 Scavenger collects Tractor Beam. 00563_ K-01 Serf cleans the Terminal. 00565_ R-06 Scavenger collects Sml. Storage Unit. 00567_ EXIT=FOUND 00591_ K-01 Serf cleans the Terminal. 00593_ Acquired Mining Claw. 00651_ G-34 Mercenary destroyed. 00668_ R-06 Scavenger collects Aluminum Leg. 00674_ Lgt. Ion Engine destroyed. 00674_ R-06 Scavenger collects Heat Sink. 00687_ S-10 Pest destroyed. 00689_ Wheel destroyed. Map ----- +----------------------------------------------------+ | ?########"" ############?#?# #???#????????? | | ?# % # #???# #????????????? | | ?# #""" ##??# #????????????? | | ?# #""" #???# #????????????? | | ############# #""" #???# #????????????? | | == # # #???# #????????????? | | """ == # # #???#####+####????????????? | | """ == + ###+########## #??#??????#??#? | | """ # ##????????????? | | # T #????#????????? | | ############# #????#?#???#### | | ?????#????####+#######+###+### #?#???????## | | ???????#??# ## ## ##########??# < | | ??????????# ## ## # #??# | | #?????????# """ ## """"" ## # !!""#?## | | ??????????#""""" ## """"" ## # [/*Y"#??# | | ??????#???#""""" ## """"" ## # =]""#??# | | ??????????#""""" ## ## + #??# | | ??????????# """ ## " ## #""" #??# | | ??????????# ## T ## ###""" ##?# | | ??????????######+##### " ## #?#""" |#?## | | ???????????????# #???# ## #?# #??# | | ??????????????## ############## #?###########?# | | ??????????????# s #?# #?????????????# | | ??????????????# s ### ############### | | ??????????????# % s @ s | | ??????????????# ################ | | ??????????????# ??????#??####### | | ????????????? ?#???????# """ # | | ??????????? #????????# "T" # % | | ?????????? [! #???"????# + " """"" | | ?????????# !! #????????# ! # """"""""" | | ?????????# !! ?????????####### """ """ | | ?????????+ ???? | | ?????????# ???? < | | ?????????# ???????? | | ?????????# ?????????? #######+####### | | ?????????# ??????????????????? ??? ??# | | ??????????? ??????????????????# ? ????#?# | | ??????????????????????????????# ?? ??????# | | ??????????????????????????????#??? ??????# | | ?????????????????????????????????? ??????# | | ?????????????????????????????????????????# *% | | ?????????????????????????????????????????# = | | ?????????????????????????????????????????# #### | | ?????????????????????????????????????????# #??# | | ?????????????????????????????????????#???# #??# | | ?????????????????????????????????????????# ####+ | | ?????????????????????????????????????????# # | | ?????????????????????????????????????????# # | +----------------------------------------------------+ Best States ------------- Heat Dissipation 25 Energy Generation 10 Energy Capacity 125 Matter Stores 400 Matter Capacity 400 Sight Range 16 Terrain Scan Range 16 Terrain Scan Density 10 Evasion (%) 50 Item Schematics ----------------- None Robot Schematics ------------------ None Fabricated ------------ Nothing Alien Tech Used ----------------- None Achievements -------------- None Challenges ------------ None Game ------ Seed HelicalScatterActivator Manual? 0 Play Time 00:13:23 Cumulative 0.4 hours Start 2024.10.30 @ 17:07:48 End 2024.10.30 @ 17:18:15 Sessions 1 Manual Loads 0 Difficulty Rogue Special Mode None Game No. 2 Rogue 2 Adventurer 0 Explorer 0 Win Type - Total 0 Types 0/0/0/0/0/0/0/0/0 Lore% 0 Gallery% 2 Achievement% 2 Wizard Run 0 Options --------- Layout 1 ASCII 0 Keyboard 1 Movement Numpad Keybinds 0 Fullscreen 2 Font 24/Smallcaps Map View 50x35 Zoom Use 0% Tactical HUD 1 Map Filters NONE Filters NONE Steam 1 RUN: fb9496c6-d7d3-48ff-8797-3021a3c87e5f